[Event "Titled Tuesday Blitz April 26 Late 2022"]
[White "Spata, German"]
[Black "Melikhov, Evgeny V."]
[WhiteFideId "113026"]
[BlackFideId "4122046"]
[WhiteElo "2238"]
[BlackElo "1931"]
[Result "1-0"]
[Round "03"]
[TimeControl "180+1"]
[Date "2022.04.26"]
[WhiteClock "0:00:48"]
[BlackClock "0:00:01"]

1. d4 {[%clk 0:02:54]}  Nf6 {[%clk 0:02:58]} 2. e3 {[%clk 0:02:54]}  d5 {[%clk 0:02:57]} 3. Nf3 {[%clk 0:02:55]}  c5 {[%clk 0:02:56]} 4. Be2 {[%clk 0:02:56]}  Nc6 {[%clk 0:02:53]} 5. O-O {[%clk 0:02:56]}  cxd4 {[%clk 0:02:53]} 6. Nxd4 {[%clk 0:02:56]}  Nxd4 {[%clk 0:02:50]} 7. exd4 {[%clk 0:02:55]}  a6 {[%clk 0:02:47]} 8. c3 {[%clk 0:02:55]}  Bf5 {[%clk 0:02:45]} 9. Bf4 {[%clk 0:02:54]}  e6 {[%clk 0:02:43]} 10. Nd2 {[%clk 0:02:55]}  Be7 {[%clk 0:02:32]} 11. Nf3 {[%clk 0:02:55]}  O-O {[%clk 0:02:31]} 12. Ne5 {[%clk 0:02:55]}  h6 {[%clk 0:02:26]} 13. Re1 {[%clk 0:02:55]}  Bd6 {[%clk 0:02:24]} 14. Bd3 {[%clk 0:02:54]}  Bxd3 {[%clk 0:02:23]} 15. Qxd3 {[%clk 0:02:55]}  Bxe5 {[%clk 0:02:20]} 16. Bxe5 {[%clk 0:02:54]}  Nd7 {[%clk 0:02:20]} 17. Bg3 {[%clk 0:02:48]}  b5 {[%clk 0:02:18]} 18. f4 {[%clk 0:02:48]}  Re8 {[%clk 0:01:57]} 19. f5 {[%clk 0:02:49]}  Qf6 {[%clk 0:01:45]} 20. fxe6 {[%clk 0:02:47]}  Rxe6 {[%clk 0:01:44]} 21. Rxe6 {[%clk 0:02:47]}  Qxe6 {[%clk 0:01:36]} 22. Re1 {[%clk 0:02:47]}  Qf6 {[%clk 0:01:26]} 23. Rf1 {[%clk 0:02:47]}  Qe6 {[%clk 0:01:23]} 24. Re1 {[%clk 0:02:47]}  Qf6 {[%clk 0:01:21]} 25. h3 {[%clk 0:02:47]}  Qg5 {[%clk 0:01:09]} 26. Qf3 {[%clk 0:02:42]}  Nf6 {[%clk 0:01:06]} 27. Rf1 {[%clk 0:02:37]}  Qg6 {[%clk 0:00:52]} 28. Be5 {[%clk 0:02:32]}  Ne4 {[%clk 0:00:50]} 29. Qe3 {[%clk 0:02:26]}  Re8 {[%clk 0:00:47]} 30. Bf4 {[%clk 0:02:17]}  Qe6 {[%clk 0:00:42]} 31. Kh2 {[%clk 0:02:13]}  Nf6 {[%clk 0:00:40]} 32. Qf3 {[%clk 0:02:09]}  Qf5 {[%clk 0:00:33]} 33. Bxh6 {[%clk 0:01:59]}  Qxf3 {[%clk 0:00:25]} 34. Rxf3 {[%clk 0:02:00]}  Re2 {[%clk 0:00:24]} 35. Bg5 {[%clk 0:01:47]}  Ne4 {[%clk 0:00:23]} 36. Rf5 {[%clk 0:01:47]}  Rxb2 {[%clk 0:00:21]} 37. Rxd5 {[%clk 0:01:47]}  Nxc3 {[%clk 0:00:19]} 38. Rd8+ {[%clk 0:01:46]}  Kh7 {[%clk 0:00:19]} 39. d5 {[%clk 0:01:46]}  Rb1 {[%clk 0:00:13]} 40. d6 {[%clk 0:01:40]}  Rd1 {[%clk 0:00:13]} 41. Be7 {[%clk 0:01:38]}  Nxa2 {[%clk 0:00:13]} 42. Rf8 {[%clk 0:01:34]}  f6 {[%clk 0:00:12]} 43. Ra8 {[%clk 0:01:32]}  Nb4 {[%clk 0:00:09]} 44. Ra7 {[%clk 0:01:32]}  Nc6 {[%clk 0:00:09]} 45. Rxa6 {[%clk 0:01:28]}  Nxe7 {[%clk 0:00:09]} 46. dxe7 {[%clk 0:01:29]}  Re1 {[%clk 0:00:09]} 47. Ra7 {[%clk 0:01:29]}  b4 {[%clk 0:00:08]} 48. Rb7 {[%clk 0:01:29]}  b3 {[%clk 0:00:08]} 49. Kg3 {[%clk 0:01:29]}  b2 {[%clk 0:00:07]} 50. Kf2 {[%clk 0:01:30]}  Rxe7 {[%clk 0:00:07]} 51. Rxb2 {[%clk 0:01:30]}  Kg6 {[%clk 0:00:07]} 52. Rb5 {[%clk 0:01:30]}  Re5 {[%clk 0:00:07]} 53. Rb6 {[%clk 0:01:24]}  Kf5 {[%clk 0:00:07]} 54. Rb7 {[%clk 0:01:24]}  g5 {[%clk 0:00:07]} 55. Kf3 {[%clk 0:01:22]}  Ra5 {[%clk 0:00:07]} 56. Rb6 {[%clk 0:01:19]}  Ra3+ {[%clk 0:00:07]} 57. Kf2 {[%clk 0:01:19]}  Rc3 {[%clk 0:00:07]} 58. Rb5+ {[%clk 0:01:19]}  Kg6 {[%clk 0:00:06]} 59. Rb8 {[%clk 0:01:20]}  Ra3 {[%clk 0:00:05]} 60. Rc8 {[%clk 0:01:20]}  Rb3 {[%clk 0:00:05]} 61. Ra8 {[%clk 0:01:19]}  Rc3 {[%clk 0:00:05]} 62. Ra4 {[%clk 0:01:19]}  Rb3 {[%clk 0:00:05]} 63. Ra2 {[%clk 0:01:18]}  Rc3 {[%clk 0:00:05]} 64. g3 {[%clk 0:01:19]}  Rb3 {[%clk 0:00:05]} 65. Kg2 {[%clk 0:01:19]}  Rc3 {[%clk 0:00:05]} 66. Rf2 {[%clk 0:01:19]}  Rb3 {[%clk 0:00:05]} 67. Rc2 {[%clk 0:01:19]}  Ra3 {[%clk 0:00:05]} 68. Rb2 {[%clk 0:01:19]}  Rc3 {[%clk 0:00:05]} 69. Rb4 {[%clk 0:01:19]}  Ra3 {[%clk 0:00:05]} 70. h4 {[%clk 0:01:19]}  gxh4 {[%clk 0:00:05]} 71. Rxh4 {[%clk 0:01:18]}  f5 {[%clk 0:00:05]} 72. Rb4 {[%clk 0:01:18]}  Kg5 {[%clk 0:00:05]} 73. Kh3 {[%clk 0:01:18]}  Rc3 {[%clk 0:00:05]} 74. Ra4 {[%clk 0:01:18]}  Rb3 {[%clk 0:00:05]} 75. Ra8 {[%clk 0:01:18]}  Rc3 {[%clk 0:00:05]} 76. Rg8+ {[%clk 0:01:18]}  Kf6 {[%clk 0:00:05]} 77. Rf8+ {[%clk 0:01:18]}  Kg5 {[%clk 0:00:05]} 78. Rg8+ {[%clk 0:01:18]}  Kf6 {[%clk 0:00:05]} 79. Kh4 {[%clk 0:01:18]}  Rc4+ {[%clk 0:00:05]} 80. Kh5 {[%clk 0:01:15]}  Rc3 {[%clk 0:00:04]} 81. Kh4 {[%clk 0:01:03]}  Ke5 {[%clk 0:00:03]} 82. Rg6 {[%clk 0:01:00]}  Rb3 {[%clk 0:00:03]} 83. Ra6 {[%clk 0:00:54]}  Rc3 {[%clk 0:00:02]} 84. Rb6 {[%clk 0:00:49]}  Ra3 {[%clk 0:00:02]} 85. Rb5+ {[%clk 0:00:49]}  Kf6 {[%clk 0:00:01]} 86. Rb6+ {[%clk 0:00:49]}  Ke5 {[%clk 0:00:02]} 87. Rg6 {[%clk 0:00:48]}  Rb3 {[%clk 0:00:01]} 88. Kh5 {[%clk 0:00:48]} 1-0


[Site "https://www.chess.com"]

[Event "Titled Tuesday Blitz April 26 Late 2022"]
[White "Stevens, Christian"]
[Black "Yurasova, Daria"]
[WhiteFideId "2604450"]
[BlackFideId "34146919"]
[WhiteElo "2540"]
[BlackElo "2064"]
[Result "1-0"]
[Round "03"]
[TimeControl "180+1"]
[Date "2022.04.26"]
[WhiteClock "0:02:14"]
[BlackClock "0:01:25"]

1. e4 {[%clk 0:03:00]}  e5 {[%clk 0:02:59]} 2. Nf3 {[%clk 0:03:00]}  Nc6 {[%clk 0:03:00]} 3. Bb5 {[%clk 0:03:00]}  a6 {[%clk 0:02:59]} 4. Ba4 {[%clk 0:02:59]}  Nf6 {[%clk 0:02:59]} 5. d3 {[%clk 0:02:59]}  b5 {[%clk 0:02:56]} 6. Bb3 {[%clk 0:02:59]}  Bc5 {[%clk 0:02:55]} 7. O-O {[%clk 0:02:59]}  d6 {[%clk 0:02:54]} 8. c3 {[%clk 0:02:56]}  Bb6 {[%clk 0:02:51]} 9. h3 {[%clk 0:02:55]}  h6 {[%clk 0:02:51]} 10. Re1 {[%clk 0:02:56]}  O-O {[%clk 0:02:28]} 11. Nbd2 {[%clk 0:02:52]}  Be6 {[%clk 0:02:26]} 12. Nf1 {[%clk 0:02:50]}  Re8 {[%clk 0:02:21]} 13. Ng3 {[%clk 0:02:30]}  d5 {[%clk 0:02:16]} 14. exd5 {[%clk 0:02:26]}  Bxd5 {[%clk 0:02:17]} 15. Be3 {[%clk 0:02:18]}  Bxf3 {[%clk 0:01:28]} 16. Qxf3 {[%clk 0:02:16]}  Qxd3 {[%clk 0:01:25]} 17. Qxc6 {[%clk 0:02:14]} 1-0


[Site "https://www.chess.com"]

[Event "Titled Tuesday Blitz April 26 Late 2022"]
[White "Szpar, Milosz"]
[Black "Fiorito, Fabian"]
[WhiteFideId "1184989"]
[BlackFideId "100200"]
[WhiteElo "2447"]
[BlackElo "2395"]
[Result "1-0"]
[Round "03"]
[TimeControl "180+1"]
[Date "2022.04.26"]
[WhiteClock "0:00:06"]
[BlackClock "0:00:02"]

1. e4 {[%clk 0:03:00]}  c5 {[%clk 0:02:59]} 2. Nf3 {[%clk 0:02:58]}  Nc6 {[%clk 0:02:59]} 3. Bb5 {[%clk 0:02:57]}  g6 {[%clk 0:02:58]} 4. c3 {[%clk 0:02:54]}  Nf6 {[%clk 0:02:50]} 5. Qe2 {[%clk 0:02:53]}  Bg7 {[%clk 0:02:45]} 6. d4 {[%clk 0:02:52]}  cxd4 {[%clk 0:02:20]} 7. cxd4 {[%clk 0:02:52]}  d5 {[%clk 0:02:20]} 8. e5 {[%clk 0:02:50]}  Ne4 {[%clk 0:02:18]} 9. O-O {[%clk 0:02:44]}  O-O {[%clk 0:02:17]} 10. Nc3 {[%clk 0:02:33]}  Nxc3 {[%clk 0:02:04]} 11. bxc3 {[%clk 0:02:33]}  a6 {[%clk 0:01:55]} 12. Bxc6 {[%clk 0:02:19]}  bxc6 {[%clk 0:01:53]} 13. Ba3 {[%clk 0:02:14]}  a5 {[%clk 0:01:52]} 14. Rfe1 {[%clk 0:02:09]}  Re8 {[%clk 0:01:48]} 15. Nd2 {[%clk 0:02:06]}  Ba6 {[%clk 0:01:44]} 16. Qe3 {[%clk 0:02:04]}  e6 {[%clk 0:01:41]} 17. Nb3 {[%clk 0:02:02]}  Bc4 {[%clk 0:01:33]} 18. Nc5 {[%clk 0:01:56]}  Rb8 {[%clk 0:01:33]} 19. Qd2 {[%clk 0:01:52]}  Qc7 {[%clk 0:01:31]} 20. Qc2 {[%clk 0:01:38]}  Rb5 {[%clk 0:01:28]} 21. Na4 {[%clk 0:01:33]}  Qb7 {[%clk 0:01:07]} 22. Bd6 {[%clk 0:01:29]}  Rc8 {[%clk 0:00:59]} 23. Nc5 {[%clk 0:01:22]}  Qb6 {[%clk 0:00:50]} 24. Reb1 {[%clk 0:01:20]}  Re8 {[%clk 0:00:33]} 25. a4 {[%clk 0:01:17]}  Rxb1+ {[%clk 0:00:33]} 26. Rxb1 {[%clk 0:01:18]}  Qd8 {[%clk 0:00:32]} 27. Nb7 {[%clk 0:00:48]}  Qa8 {[%clk 0:00:19]} 28. h4 {[%clk 0:00:46]}  f6 {[%clk 0:00:20]} 29. f4 {[%clk 0:00:35]}  fxe5 {[%clk 0:00:18]} 30. fxe5 {[%clk 0:00:36]}  Bh6 {[%clk 0:00:15]} 31. Kh2 {[%clk 0:00:25]}  Qc8 {[%clk 0:00:15]} 32. h5 {[%clk 0:00:24]}  gxh5 {[%clk 0:00:13]} 33. Nc5 {[%clk 0:00:24]}  Qd8 {[%clk 0:00:13]} 34. Qf2 {[%clk 0:00:19]}  Qg5 {[%clk 0:00:11]} 35. Nd7 {[%clk 0:00:12]}  Bg7 {[%clk 0:00:08]} 36. Rb7 {[%clk 0:00:09]}  Kh8 {[%clk 0:00:07]} 37. Nf6 {[%clk 0:00:08]}  Rd8 {[%clk 0:00:06]} 38. Be7 {[%clk 0:00:08]}  Ra8 {[%clk 0:00:05]} 39. Nxd5 {[%clk 0:00:07]}  Qg4 {[%clk 0:00:04]} 40. Ne3 {[%clk 0:00:06]}  Qe4 {[%clk 0:00:03]} 41. Nxc4 {[%clk 0:00:06]}  c5 {[%clk 0:00:03]} 42. Nd6 {[%clk 0:00:07]}  Qg4 {[%clk 0:00:02]} 43. Bf6 {[%clk 0:00:06]}  Rg8 {[%clk 0:00:02]} 44. Nf7# {[%clk 0:00:06]} 1-0


[Site "https://www.chess.com"]

[Event "Titled Tuesday Blitz April 26 Late 2022"]
[White "Taichman, Ori"]
[Black "Sjugirov, Sanan"]
[WhiteFideId "2804069"]
[BlackFideId "4189302"]
[WhiteElo "2227"]
[BlackElo "2602"]
[Result "1-0"]
[Round "03"]
[TimeControl "180+1"]
[Date "2022.04.26"]
[WhiteClock "0:00:08"]
[BlackClock "0:00:04"]

1. e4 {[%clk 0:03:00]}  c6 {[%clk 0:02:59]} 2. d4 {[%clk 0:03:00]}  d5 {[%clk 0:03:00]} 3. e5 {[%clk 0:03:01]}  Bf5 {[%clk 0:03:00]} 4. h4 {[%clk 0:03:01]}  h5 {[%clk 0:02:58]} 5. Bd3 {[%clk 0:03:01]}  Bxd3 {[%clk 0:02:58]} 6. Qxd3 {[%clk 0:03:02]}  Qa5+ {[%clk 0:02:55]} 7. Bd2 {[%clk 0:03:01]}  Qa6 {[%clk 0:02:54]} 8. e6 {[%clk 0:03:00]}  Qxd3 {[%clk 0:02:54]} 9. exf7+ {[%clk 0:03:01]}  Kxf7 {[%clk 0:02:55]} 10. cxd3 {[%clk 0:03:02]}  e6 {[%clk 0:02:36]} 11. Nf3 {[%clk 0:03:01]}  Be7 {[%clk 0:02:35]} 12. Bg5 {[%clk 0:03:01]}  Bf6 {[%clk 0:02:32]} 13. Ne5+ {[%clk 0:02:53]}  Bxe5 {[%clk 0:02:31]} 14. dxe5 {[%clk 0:02:54]}  c5 {[%clk 0:02:24]} 15. Nc3 {[%clk 0:02:48]}  Nc6 {[%clk 0:02:17]} 16. f4 {[%clk 0:02:42]}  Nge7 {[%clk 0:02:16]} 17. Bxe7 {[%clk 0:02:41]}  Nxe7 {[%clk 0:02:15]} 18. Kf2 {[%clk 0:02:11]}  Nf5 {[%clk 0:02:13]} 19. Rag1 {[%clk 0:02:11]}  b5 {[%clk 0:02:03]} 20. g4 {[%clk 0:02:05]}  hxg4 {[%clk 0:02:02]} 21. Rxg4 {[%clk 0:02:06]}  a6 {[%clk 0:01:57]} 22. Ne2 {[%clk 0:02:03]}  g6 {[%clk 0:01:33]} 23. Ng3 {[%clk 0:02:00]}  Ng7 {[%clk 0:01:30]} 24. Rg5 {[%clk 0:01:48]}  Rh6 {[%clk 0:01:20]} 25. h5 {[%clk 0:01:45]}  Nxh5 {[%clk 0:00:54]} 26. Nxh5 {[%clk 0:01:21]}  Rah8 {[%clk 0:00:53]} 27. Rc1 {[%clk 0:01:08]}  Rxh5 {[%clk 0:00:49]} 28. Rxh5 {[%clk 0:01:08]}  Rxh5 {[%clk 0:00:49]} 29. Rxc5 {[%clk 0:01:08]}  Rh2+ {[%clk 0:00:49]} 30. Ke3 {[%clk 0:01:09]}  Rxb2 {[%clk 0:00:47]} 31. Rc7+ {[%clk 0:01:09]}  Ke8 {[%clk 0:00:45]} 32. Rc6 {[%clk 0:01:10]}  Rxa2 {[%clk 0:00:40]} 33. Rxe6+ {[%clk 0:01:09]}  Kd7 {[%clk 0:00:39]} 34. Rxg6 {[%clk 0:01:06]}  Ra1 {[%clk 0:00:33]} 35. Rd6+ {[%clk 0:01:02]}  Kc7 {[%clk 0:00:33]} 36. Rxd5 {[%clk 0:01:03]}  b4 {[%clk 0:00:30]} 37. Kd4 {[%clk 0:00:39]}  Rc1 {[%clk 0:00:24]} 38. e6 {[%clk 0:00:34]}  b3 {[%clk 0:00:20]} 39. e7 {[%clk 0:00:27]}  Re1 {[%clk 0:00:20]} 40. Re5 {[%clk 0:00:27]}  Rxe5 {[%clk 0:00:14]} 41. fxe5 {[%clk 0:00:28]}  b2 {[%clk 0:00:09]} 42. e8=Q {[%clk 0:00:28]}  b1=Q {[%clk 0:00:10]} 43. Qe7+ {[%clk 0:00:29]}  Kb6 {[%clk 0:00:08]} 44. Qd6+ {[%clk 0:00:28]}  Kb7 {[%clk 0:00:09]} 45. Qd5+ {[%clk 0:00:28]}  Kb6 {[%clk 0:00:08]} 46. Qc5+ {[%clk 0:00:27]}  Kb7 {[%clk 0:00:08]} 47. Qd5+ {[%clk 0:00:22]}  Kb6 {[%clk 0:00:08]} 48. e6 {[%clk 0:00:22]}  Qb4+ {[%clk 0:00:07]} 49. Ke5 {[%clk 0:00:22]}  Qe1+ {[%clk 0:00:06]} 50. Kd6 {[%clk 0:00:21]}  Qg3+ {[%clk 0:00:06]} 51. Kd7 {[%clk 0:00:19]}  Qc7+ {[%clk 0:00:06]} 52. Ke8 {[%clk 0:00:19]}  a5 {[%clk 0:00:03]} 53. e7 {[%clk 0:00:12]}  Qg3 {[%clk 0:00:01]} 54. Qe6+ {[%clk 0:00:09]}  Kb7 {[%clk 0:00:02]} 55. Qd5+ {[%clk 0:00:08]}  Kb6 {[%clk 0:00:02]} 56. Kd8 {[%clk 0:00:07]}  Qb8+ {[%clk 0:00:02]} 57. Kd7 {[%clk 0:00:07]}  Qc7+ {[%clk 0:00:02]} 58. Ke6 {[%clk 0:00:08]}  Qc8+ {[%clk 0:00:03]} 59. Qd7 {[%clk 0:00:08]}  Qg8+ {[%clk 0:00:03]} 60. Kd6 {[%clk 0:00:08]}  Qg6+ {[%clk 0:00:03]} 61. Qe6 {[%clk 0:00:08]}  Qxd3+ {[%clk 0:00:03]} 62. Qd5 {[%clk 0:00:09]}  Qg6+ {[%clk 0:00:03]} 63. Kd7 {[%clk 0:00:09]}  Qh7 {[%clk 0:00:03]} 64. Kd8 {[%clk 0:00:08]}  Qh4 {[%clk 0:00:02]} 65. Qd6+ {[%clk 0:00:08]}  Kb7 {[%clk 0:00:02]} 66. Qd7+ {[%clk 0:00:07]}  Kb6 {[%clk 0:00:02]} 67. Qc7+ {[%clk 0:00:07]}  Ka6 {[%clk 0:00:02]} 68. Qc6+ {[%clk 0:00:06]}  Ka7 {[%clk 0:00:03]} 69. Qc7+ {[%clk 0:00:06]}  Ka6 {[%clk 0:00:03]} 70. Kc8 {[%clk 0:00:06]}  Qg4+ {[%clk 0:00:03]} 71. Kb8 {[%clk 0:00:06]}  Qb4+ {[%clk 0:00:03]} 72. Kc8 {[%clk 0:00:06]}  Qg4+ {[%clk 0:00:03]} 73. Qd7 {[%clk 0:00:07]}  Qc4+ {[%clk 0:00:03]} 74. Kd8 {[%clk 0:00:07]}  Qh4 {[%clk 0:00:04]} 75. Qc6+ {[%clk 0:00:07]}  Ka7 {[%clk 0:00:04]} 76. Qc5+ {[%clk 0:00:07]}  Ka6 {[%clk 0:00:04]} 77. Kc8 {[%clk 0:00:08]}  Qg4+ {[%clk 0:00:04]} 78. Kc7 {[%clk 0:00:08]}  Qg7 {[%clk 0:00:04]} 79. Qb6# {[%clk 0:00:08]} 1-0


[Site "https://www.chess.com"]

[Event "Titled Tuesday Blitz April 26 Late 2022"]
[White "Talibov, Shiroghlan"]
[Black "Gnechko, Ruslan"]
[WhiteFideId "13429078"]
[BlackFideId "14135868"]
[WhiteElo "2042"]
[BlackElo "2289"]
[Result "0-1"]
[Round "03"]
[TimeControl "180+1"]
[Date "2022.04.26"]
[WhiteClock "0:00:01"]
[BlackClock "0:00:09"]

1. e4 {[%clk 0:02:59]}  c6 {[%clk 0:03:00]} 2. d4 {[%clk 0:02:57]}  d5 {[%clk 0:03:01]} 3. e5 {[%clk 0:02:58]}  Bf5 {[%clk 0:03:00]} 4. h4 {[%clk 0:02:57]}  h5 {[%clk 0:03:00]} 5. Bd3 {[%clk 0:02:53]}  Bxd3 {[%clk 0:02:57]} 6. Qxd3 {[%clk 0:02:54]}  e6 {[%clk 0:02:57]} 7. Nf3 {[%clk 0:02:51]}  Nd7 {[%clk 0:02:53]} 8. c4 {[%clk 0:02:50]}  Ne7 {[%clk 0:02:50]} 9. Nc3 {[%clk 0:02:50]}  Nf5 {[%clk 0:02:49]} 10. cxd5 {[%clk 0:02:50]}  cxd5 {[%clk 0:02:47]} 11. Nxd5 {[%clk 0:02:49]}  Nxe5 {[%clk 0:02:39]} 12. Qb5+ {[%clk 0:02:26]}  Nc6 {[%clk 0:02:36]} 13. Qxb7 {[%clk 0:02:12]}  Rc8 {[%clk 0:02:04]} 14. Nc3 {[%clk 0:02:05]}  Nfxd4 {[%clk 0:01:49]} 15. Nxd4 {[%clk 0:02:04]}  Nxd4 {[%clk 0:01:48]} 16. O-O {[%clk 0:02:03]}  Rc7 {[%clk 0:01:45]} 17. Qe4 {[%clk 0:01:51]}  Be7 {[%clk 0:01:13]} 18. Rd1 {[%clk 0:01:46]}  Rd7 {[%clk 0:01:13]} 19. Be3 {[%clk 0:01:45]}  Ne2+ {[%clk 0:01:05]} 20. Nxe2 {[%clk 0:01:20]}  Rxd1+ {[%clk 0:01:04]} 21. Rxd1 {[%clk 0:01:21]}  Qxd1+ {[%clk 0:01:04]} 22. Kh2 {[%clk 0:01:22]}  O-O {[%clk 0:00:57]} 23. Nf4 {[%clk 0:01:18]}  Bd6 {[%clk 0:00:53]} 24. g3 {[%clk 0:01:15]}  Bxf4 {[%clk 0:00:50]} 25. Qxf4 {[%clk 0:01:11]}  Qc2 {[%clk 0:00:35]} 26. Bxa7 {[%clk 0:01:02]}  Qxb2 {[%clk 0:00:29]} 27. a4 {[%clk 0:00:45]}  Rd8 {[%clk 0:00:27]} 28. a5 {[%clk 0:00:41]}  Rd1 {[%clk 0:00:25]} 29. Qf3 {[%clk 0:00:27]}  Rd5 {[%clk 0:00:20]} 30. Bb6 {[%clk 0:00:23]}  Qb5 {[%clk 0:00:19]} 31. Qc3 {[%clk 0:00:16]}  Qd7 {[%clk 0:00:14]} 32. Qf3 {[%clk 0:00:15]}  Qb7 {[%clk 0:00:13]} 33. Qe4 {[%clk 0:00:13]}  g6 {[%clk 0:00:13]} 34. Qf3 {[%clk 0:00:11]}  Qa6 {[%clk 0:00:13]} 35. Qc3 {[%clk 0:00:10]}  e5 {[%clk 0:00:09]} 36. Qc6 {[%clk 0:00:09]}  Rd2 {[%clk 0:00:07]} 37. Qe8+ {[%clk 0:00:08]}  Kh7 {[%clk 0:00:08]} 38. Qxf7+ {[%clk 0:00:07]}  Kh8 {[%clk 0:00:09]} 39. Qe8+ {[%clk 0:00:05]}  Kh7 {[%clk 0:00:09]} 40. Qe7+ {[%clk 0:00:06]}  Kh8 {[%clk 0:00:09]} 41. Qxe5+ {[%clk 0:00:05]}  Kh7 {[%clk 0:00:10]} 42. Qe7+ {[%clk 0:00:05]}  Kh8 {[%clk 0:00:10]} 43. Qf6+ {[%clk 0:00:06]}  Kh7 {[%clk 0:00:10]} 44. Qf7+ {[%clk 0:00:05]}  Kh8 {[%clk 0:00:09]} 45. Qxg6 {[%clk 0:00:04]}  Rxf2+ {[%clk 0:00:09]} 46. Kh3 {[%clk 0:00:01]}  Qf1# {[%clk 0:00:09]} 0-1


[Site "https://www.chess.com"]

[Event "Titled Tuesday Blitz April 26 Late 2022"]
[White "Torres Cueto, Jesus Marcial"]
[Black "Nozdrachev, Leonid"]
[WhiteFideId "4415280"]
[BlackFideId "24113433"]
[WhiteElo "2055"]
[BlackElo "2242"]
[Result "0-1"]
[Round "03"]
[TimeControl "180+1"]
[Date "2022.04.26"]
[WhiteClock "0:01:19"]
[BlackClock "0:01:41"]

1. d4 {[%clk 0:02:31]}  Nf6 {[%clk 0:02:56]} 2. c4 {[%clk 0:02:19]}  e5 {[%clk 0:02:55]} 3. Nc3 {[%clk 0:02:20]}  exd4 {[%clk 0:02:53]} 4. Qxd4 {[%clk 0:02:21]}  Bb4 {[%clk 0:02:51]} 5. Nf3 {[%clk 0:02:16]}  O-O {[%clk 0:02:49]} 6. e3 {[%clk 0:02:15]}  Nc6 {[%clk 0:02:46]} 7. Qd3 {[%clk 0:02:14]}  d5 {[%clk 0:02:43]} 8. cxd5 {[%clk 0:02:11]}  Nxd5 {[%clk 0:02:42]} 9. Bd2 {[%clk 0:02:12]}  Be6 {[%clk 0:02:39]} 10. Nxd5 {[%clk 0:02:09]}  Bxd5 {[%clk 0:02:34]} 11. Be2 {[%clk 0:01:45]}  Bxf3 {[%clk 0:02:29]} 12. gxf3 {[%clk 0:01:41]}  Qxd3 {[%clk 0:02:27]} 13. Bxd3 {[%clk 0:01:40]}  Rfd8 {[%clk 0:02:24]} 14. Bxb4 {[%clk 0:01:30]}  Nxb4 {[%clk 0:02:22]} 15. Be4 {[%clk 0:01:30]}  Nd3+ {[%clk 0:02:14]} 16. Bxd3 {[%clk 0:01:29]}  Rxd3 {[%clk 0:02:15]} 17. Ke2 {[%clk 0:01:30]}  Rad8 {[%clk 0:02:14]} 18. Rhd1 {[%clk 0:01:31]}  Rxd1 {[%clk 0:02:14]} 19. Rxd1 {[%clk 0:01:32]}  Rxd1 {[%clk 0:02:14]} 20. Kxd1 {[%clk 0:01:32]}  g6 {[%clk 0:02:05]} 21. Kd2 {[%clk 0:01:32]}  Kg7 {[%clk 0:02:05]} 22. Kd3 {[%clk 0:01:33]}  Kh6 {[%clk 0:02:05]} 23. Ke4 {[%clk 0:01:31]}  Kg5 {[%clk 0:01:58]} 24. Ke5 {[%clk 0:01:26]}  c5 {[%clk 0:01:47]} 25. f4+ {[%clk 0:01:23]}  Kg4 {[%clk 0:01:46]} 26. e4 {[%clk 0:01:19]}  c4 {[%clk 0:01:44]} 27. f5 {[%clk 0:01:19]}  gxf5 {[%clk 0:01:43]} 28. exf5 {[%clk 0:01:20]}  b5 {[%clk 0:01:42]} 29. Kf6 {[%clk 0:01:19]}  b4 {[%clk 0:01:41]} 0-1


[Site "https://www.chess.com"]

[Event "Titled Tuesday Blitz April 26 Late 2022"]
[White "Tregubov, Pavel V."]
[Black "Meduri, Aakaash"]
[WhiteFideId "4115341"]
[BlackFideId "2032252"]
[WhiteElo "2341"]
[BlackElo "2096"]
[Result "0-1"]
[Round "03"]
[TimeControl "180+1"]
[Date "2022.04.26"]
[WhiteClock "0:01:18"]
[BlackClock "0:01:26"]

1. e4 {[%clk 0:03:00]}  c5 {[%clk 0:03:00]} 2. Nf3 {[%clk 0:03:00]}  d6 {[%clk 0:03:00]} 3. Bb5+ {[%clk 0:02:59]}  Bd7 {[%clk 0:03:00]} 4. Bxd7+ {[%clk 0:02:59]}  Qxd7 {[%clk 0:03:01]} 5. O-O {[%clk 0:02:59]}  Nc6 {[%clk 0:03:02]} 6. c3 {[%clk 0:02:58]}  d5 {[%clk 0:02:54]} 7. exd5 {[%clk 0:02:52]}  Qxd5 {[%clk 0:02:55]} 8. d4 {[%clk 0:02:53]}  O-O-O {[%clk 0:02:52]} 9. Qa4 {[%clk 0:02:36]}  e6 {[%clk 0:02:47]} 10. Be3 {[%clk 0:02:31]}  Nf6 {[%clk 0:02:43]} 11. c4 {[%clk 0:02:27]}  Qh5 {[%clk 0:02:42]} 12. dxc5 {[%clk 0:02:10]}  Ng4 {[%clk 0:02:39]} 13. b4 {[%clk 0:01:53]}  Nce5 {[%clk 0:02:24]} 14. Bf4 {[%clk 0:01:50]}  Nxf3+ {[%clk 0:02:05]} 15. gxf3 {[%clk 0:01:50]}  Ne5 {[%clk 0:02:06]} 16. Bxe5 {[%clk 0:01:44]}  Qxe5 {[%clk 0:02:04]} 17. Na3 {[%clk 0:01:45]}  Qg5+ {[%clk 0:01:40]} 18. Kh1 {[%clk 0:01:45]}  Qf4 {[%clk 0:01:40]} 19. Kg2 {[%clk 0:01:33]}  Qg5+ {[%clk 0:01:39]} 20. Kh1 {[%clk 0:01:34]}  Qf5 {[%clk 0:01:39]} 21. Rg1 {[%clk 0:01:30]}  Qxf3+ {[%clk 0:01:32]} 22. Rg2 {[%clk 0:01:30]}  Be7 {[%clk 0:01:27]} 23. Qb3 {[%clk 0:01:18]}  Rd3 {[%clk 0:01:26]} 0-1


[Site "https://www.chess.com"]